fUST/lending_fUST_20250814
["ID","MTS","AMOUNT","RATE_DAILY","PERIOD"]
[379171014,1755175846198,-787.23,0.00016712,2]
[379171015,1755175846208,-478.1,0.00016712,2]
[379171016,1755175846217,-1108.44,0.00016712,2]
[379171017,1755175846227,-803.15,0.00016712,2]
[379171018,1755175846237,-699.67,0.00016712,2]
[379171019,1755175846250,-460.0,0.00016712,2]
[379171020,1755175846259,-460.0,0.00016712,2]
[379171021,1755175846270,-460.0,0.00016712,2]
[379171022,1755175846281,-460.0,0.00016712,2]
[379171023,1755175846290,-865.62,0.00016712,2]
[379171024,1755175846300,-460.0,0.00016712,2]
[379171025,1755175846310,-460.0,0.00016712,2]
[379171026,1755175846321,-1815.51,0.00016712,2]
[379171027,1755175846330,-460.0,0.00016712,2]
[379171028,1755175846340,-351.52850223,0.00016712,2]
[379171029,1755175846349,-151.0,0.00016712,2]
[379171030,1755175846359,-493.12,0.00016712,2]
[379171031,1755175846369,-855.88,0.00016712,2]
[379171032,1755175846379,-460.0,0.00016712,2]
[379171033,1755175846388,-537.82801269,0.00016712,2]
[379171034,1755175846398,-460.0,0.00016712,2]
[379171035,1755175846407,-855.38,0.00016712,2]
[379171036,1755175846417,-460.0,0.00016712,2]
[379171037,1755175846426,-460.0,0.00016712,2]
[379171038,1755175846436,-842.57,0.00016712,2]
[379171039,1755175846446,-460.0,0.00016712,2]
[379171040,1755175846456,-1168.6,0.00016712,2]
[379171041,1755175846465,-460.0,0.00016712,2]
[379171042,1755175846475,-496.26,0.00016712,2]
[379171043,1755175846485,-1943.05,0.00016712,2]
[379171044,1755175846495,-460.0,0.00016712,2]
[379171045,1755175846505,-624.64,0.00016712,2]
[379171046,1755175846516,-460.0,0.00016712,2]
[379171047,1755175846526,-1435.73,0.00016712,2]
[379171048,1755175846535,-4780.38,0.00016712,2]
[379171049,1755175846545,-2554.0,0.00016712,2]
[379171050,1755175846554,-460.0,0.00016712,2]
[379171051,1755175846564,-460.0,0.00016712,2]
[379171052,1755175846574,-787.38,0.00016712,2]
[379171053,1755175846584,-460.0,0.00016712,2]
[379171054,1755175846595,-460.0,0.00016712,2]
[379171055,1755175846604,-681.21,0.00016712,2]
[379171056,1755175846614,-1250.08,0.00016712,2]
[379171057,1755175846624,-1116.97,0.00016712,2]
[379171058,1755175846633,-917.72,0.00016712,2]
[379171059,1755175846643,-730.83,0.00016712,2]
[379171060,1755175846652,-460.0,0.00016712,2]
[379171061,1755175846662,-792.1,0.00016712,2]
[379171062,1755175846671,-460.0,0.00016712,2]
[379171063,1755175846681,-460.0,0.00016712,2]
[379171064,1755175846690,-460.0,0.00016712,2]
[379171065,1755175846700,-460.0,0.00016712,2]
[379171066,1755175846709,-460.0,0.00016712,2]
[379171067,1755175846719,-476.49,0.00016712,2]
[379171068,1755175846728,-460.0,0.00016712,2]
[379171069,1755175846737,-2103.47,0.00016712,2]
[379171070,1755175846746,-460.0,0.00016712,2]
[379171071,1755175846755,-460.0,0.00016712,2]
[379171072,1755175846765,-460.0,0.00016712,2]
[379171073,1755175846775,-878.48,0.00016712,2]
[379171074,1755175846784,-460.0,0.00016712,2]
[379171075,1755175846794,-462.22509954,0.00016712,2]
[379171076,1755175846804,-460.0,0.00016712,2]
[379171077,1755175846813,-460.0,0.00016712,2]
[379171078,1755175846822,-1480.56,0.00016712,2]
[379171079,1755175846832,-460.0,0.00016712,2]
[379171080,1755175846842,-1865.21,0.00016712,2]
[379171081,1755175846851,-460.0,0.00016712,2]
[379171082,1755175846860,-662.76,0.00016712,2]
[379171083,1755175846869,-3052.16,0.00016712,2]
[379171084,1755175846878,-460.0,0.00016712,2]
[379171085,1755175846887,-983.73,0.00016712,2]
[379171086,1755175846897,-460.0,0.00016712,2]
[379171087,1755175846907,-460.0,0.00016712,2]
[379171088,1755175846916,-2057.02,0.00016712,2]
[379171089,1755175846925,-460.0,0.00016712,2]
[379171090,1755175846934,-460.0,0.00016712,2]
[379171091,1755175846944,-829.79,0.00016712,2]
[379171092,1755175846953,-485.87,0.00016712,2]
[379171093,1755175846962,-460.0,0.00016712,2]
[379171094,1755175846973,-664.23,0.00016712,2]
[379171095,1755175846982,-460.0,0.00016712,2]
[379171096,1755175846992,-470.06215755,0.00016712,2]
[379171097,1755175847001,-11382.43,0.00016712,2]
[379171098,1755175847011,-472.75349022,0.00016712,2]
[379171099,1755175847022,-460.0,0.00016712,2]
[379171100,1755175847033,-460.0,0.00016712,2]
[379171101,1755175847043,-460.0,0.00016712,2]
[379171102,1755175847052,-504.47,0.00016712,2]
[379171103,1755175847062,-1500.93,0.00016712,2]
[379171104,1755175847071,-460.0,0.00016712,2]
[379171105,1755175847081,-2175.76,0.00016712,2]
[379171106,1755175847091,-460.0,0.00016712,2]
[379171107,1755175847101,-1294.6,0.00016712,2]
[379171108,1755175847110,-460.0,0.00016712,2]
[379171109,1755175847120,-513.91,0.00016712,2]
[379171110,1755175847130,-832.86,0.00016712,2]
[379171111,1755175847139,-460.0,0.00016712,2]
[379171112,1755175847149,-613.61,0.00016712,2]
[379171113,1755175847159,-460.0,0.00016712,2]
[379171114,1755175847169,-486.92,0.00016712,2]
[379171115,1755175847178,-1551.6,0.00016712,2]
[379171116,1755175847188,-1994.22,0.00016712,2]
[379171117,1755175847198,-882.03,0.00016712,2]
[379171118,1755175847207,-460.0,0.00016712,2]
[379171119,1755175847217,-460.0,0.00016712,2]
[379171120,1755175847227,-460.0,0.00016712,2]
[379171121,1755175847239,-460.0,0.00016712,2]
[379171122,1755175847251,-466.53537807,0.00016712,2]
[379171123,1755175847260,-941.45,0.00016712,2]
[379171124,1755175847271,-460.0,0.00016712,2]
[379171125,1755175847282,-460.0,0.00016712,2]
[379171126,1755175847292,-1175.46,0.00016712,2]
[379171127,1755175847301,-2242.55,0.00016712,2]
[379171128,1755175847311,-1055.55,0.00016712,2]
[379171129,1755175847321,-460.0,0.00016712,2]
[379171130,1755175847331,-544.54,0.00016712,2]
[379171131,1755175847341,-430.87988343,0.00016712,2]
[379171132,1755175847350,-7510.2,0.00016712,2]
[379171133,1755175847359,-844.15,0.00016712,2]
[379171134,1755175847369,-460.0,0.00016712,2]
[379171135,1755175847378,-460.0,0.00016712,2]
[379171136,1755175847387,-460.0,0.00016712,2]
[379171137,1755175847396,-460.0,0.00016712,2]
[379171138,1755175847406,-460.0,0.00016712,2]
[379171139,1755175847415,-2875.86,0.00016712,2]
[379171140,1755175847426,-975.64,0.00016712,2]
[379171141,1755175847435,-460.0,0.00016712,2]
[379171142,1755175847444,-573.82,0.00016712,2]
[379171143,1755175847454,-460.0,0.00016712,2]
[379171144,1755175847464,-460.0,0.00016712,2]
[379171145,1755175847474,-460.0,0.00016712,2]
[379171146,1755175847484,-460.0,0.00016712,2]
[379171147,1755175847493,-460.0,0.00016712,2]
[379171148,1755175847503,-460.0,0.00016712,2]
[379171149,1755175847512,-576.43,0.00016712,2]
[379171150,1755175847523,-1050.32,0.00016712,2]
[379171151,1755175847533,-1257.29,0.00016712,2]
[379171152,1755175847543,-460.0,0.00016712,2]
[379171153,1755175847552,-460.0,0.00016712,2]
[379171154,1755175847563,-460.0,0.00016712,2]
[379171155,1755175847573,-2320.64,0.00016712,2]
[379171156,1755175847582,-7172.04,0.00016712,2]
[379171157,1755175847592,-460.0,0.00016712,2]
[379171158,1755175847602,-650.96,0.00016712,2]
[379171159,1755175847612,-460.0,0.00016712,2]
[379171160,1755175847622,-1112.56,0.00016712,2]
[379171176,1755175847775,-515.21,0.00016712,2]
[379171178,1755175847785,-1203.72,0.00016712,2]
[379171180,1755175847795,-182.10609292,0.00016712,2]
[379171182,1755175847806,-500.0,0.00016712,2]
[379171184,1755175847815,-151.0,0.00016738,2]
[379171186,1755175847826,-151.0,0.00016738,2]
[379171188,1755175847836,-2984.08044962,0.00016749,2]
[379171190,1755175847845,-200.0,0.00016756,2]
[379171192,1755175847854,-200.0,0.00016756,2]
[379171193,1755175847864,-200.0,0.00016756,2]
[379171194,1755175847873,-200.0,0.00016756,2]
[379171195,1755175847882,-200.0,0.00016756,2]
[379171196,1755175847892,-200.0,0.00016756,2]
[379171198,1755175847901,-597.248821,0.00016766,2]
[379171200,1755175847912,-597.248821,0.00016766,2]
[379171202,1755175847922,-983.012975,0.00016773,2]
[379171204,1755175847931,-983.012975,0.00016773,2]
[379171206,1755175847940,-352.0,0.00016803,2]
[379171208,1755175847949,-151.0,0.00016885,2]
[379171209,1755175847959,-597.248821,0.00016885,2]
[379171210,1755175847968,-597.248821,0.00016885,2]
[379171211,1755175847977,-151.0,0.00016885,2]
[379171213,1755175847987,-983.012975,0.00016885,2]
[379171215,1755175847996,-983.012975,0.00016885,2]
[379171216,1755175848005,-2984.08044962,0.00016886,2]
[379171217,1755175848017,-360.4854995,0.00016968,2]
[379171219,1755175848027,-500.0,0.00016973,2]
[379171220,1755175848037,-500.0,0.00016973,2]
[379171221,1755175848047,-500.0,0.00016973,2]
[379171222,1755175848057,-501.10202424,0.00016973,2]
[379171223,1755175848067,-276.93911925,0.00016973,2]
[379171224,1755175848078,-500.0,0.00016973,2]
[379171226,1755175848088,-500.28453991,0.00016973,2]
[379171228,1755175848099,-500.0,0.00016973,2]
[379171230,1755175848109,-212.97679352,0.00016973,2]
[379171231,1755175848119,-500.0,0.00016973,2]
[379171233,1755175848130,-501.14541372,0.00016973,2]
[379171235,1755175848140,-500.0,0.00016973,2]
[379171237,1755175848150,-212.1574499,0.00016973,2]
[379171239,1755175848161,-500.0,0.00016973,2]
[379171240,1755175848171,-500.0,0.00016973,2]
[379171241,1755175848181,-500.0,0.00016973,2]
[379171242,1755175848190,-360.15342738,0.00016973,2]
[379171243,1755175848200,-500.0,0.00016973,2]
[379171244,1755175848210,-500.0,0.00016973,2]
[379171245,1755175848220,-500.0,0.00016973,2]
[379171246,1755175848230,-500.0,0.00016973,2]
[379171247,1755175848242,-500.0,0.00016973,2]
[379171248,1755175848252,-500.0,0.00016973,2]
[379171249,1755175848261,-500.0,0.00016973,2]
[379171250,1755175848274,-500.0,0.00016973,2]
[379171251,1755175848283,-500.0,0.00016973,2]
[379171252,1755175848293,-500.0,0.00016973,2]
[379171253,1755175848304,-489.56413626,0.00016973,2]
[379171254,1755175848316,-615.14535632,0.00016973,2]
[379171256,1755175848326,-150.61245558,0.00016973,2]
[379171257,1755175848335,-193.51165643,0.00016973,2]
[379171259,1755175848345,-500.0,0.00016973,2]
[379171260,1755175848354,-500.0,0.00016973,2]
[379171261,1755175848364,-500.0,0.00016973,2]
[379171263,1755175848374,-500.0,0.00016973,2]
[379171264,1755175848384,-500.0,0.00016973,2]
[379171265,1755175848394,-500.0,0.00016973,2]
[379171266,1755175848404,-500.0,0.00016973,2]
[379171267,1755175848414,-159.54142344,0.00016973,2]
[379171268,1755175848423,-500.0,0.00016973,2]
[379171269,1755175848433,-500.0,0.00016973,2]
[379171270,1755175848443,-500.0,0.00016973,2]
[379171271,1755175848453,-500.0,0.00016973,2]
[379171272,1755175848463,-500.0,0.00016973,2]
[379171273,1755175848472,-500.0,0.00016973,2]
[379171274,1755175848481,-500.0,0.00016973,2]
[379171275,1755175848494,-500.0,0.00016973,2]
[379171276,1755175848504,-500.0,0.00016973,2]
[379171277,1755175848515,-554.74712268,0.00016973,2]
[379171278,1755175848526,-506.77499837,0.00016973,2]
[379171279,1755175848537,-151.0,0.00016973,2]
[379171280,1755175848548,-597.248821,0.00016984,2]
[379171281,1755175848558,-597.248821,0.00016984,2]
[379171282,1755175848571,-151.0,0.00016985,2]
[379171283,1755175848581,-983.012975,0.00016985,2]
[379171284,1755175848592,-983.012975,0.00016985,2]
[379171285,1755175848602,-151.0,0.00016986,2]
[379171286,1755175848612,-151.0,0.00016986,2]
[379171287,1755175848621,-597.248821,0.00016986,2]
[379171288,1755175848633,-597.248821,0.00016986,2]
[379171289,1755175848644,-597.248821,0.00016986,2]
[379171290,1755175848654,-597.248821,0.00016986,2]
[379171291,1755175848664,-983.012975,0.00016986,2]
[379171292,1755175848674,-983.012975,0.00016986,2]
[379171293,1755175848684,-983.012975,0.00016986,2]
[379171294,1755175848694,-983.012975,0.00016986,2]
[379171295,1755175848703,-151.0,0.00016986,2]
[379171296,1755175848711,-233.625175,0.00016986,2]
[379171297,1755175848719,-233.625175,0.00016986,2]
[379171298,1755175848726,-151.0,0.00016986,2]
[379171299,1755175848736,-151.0,0.00016986,2]
[379171300,1755175848746,-151.0,0.00016986,2]
[379171301,1755175848755,-151.0,0.00016986,2]
[379171302,1755175848766,-151.0,0.00016986,2]
[379171303,1755175848775,-151.663625,0.00016986,2]
[379171304,1755175848785,-151.0,0.00016986,2]
[379171305,1755175848795,-151.0,0.00016986,2]
[379171306,1755175848805,-151.0,0.00016986,2]
[379171307,1755175848814,-151.0,0.00016986,2]
[379171308,1755175848824,-151.0,0.00016986,2]
[379171309,1755175848834,-151.0,0.00016986,2]
[379171310,1755175848843,-151.0,0.00016986,2]
[379171311,1755175848853,-151.0,0.00016986,2]
[379171312,1755175848863,-476.6,0.00016986,2]
[379171313,1755175848872,-603.15,0.00016986,2]
[379171314,1755175848882,-1189.22,0.00016986,2]
[379171315,1755175848891,-460.0,0.00016986,2]
[379171316,1755175848901,-255.366133,0.00016986,2]
[379171317,1755175848911,-255.366133,0.00016986,2]
[379171318,1755175848920,-460.0,0.00016986,2]
[379171319,1755175848930,-460.0,0.00016986,2]
[379171320,1755175848939,-488.2,0.00016986,2]
[379171321,1755175848949,-490.38633583,0.00016986,2]
[379171322,1755175848959,-151.0,0.00016986,2]
[379171323,1755175848969,-460.0,0.00016986,2]
[379171324,1755175848978,-460.0,0.00016986,2]
[379171325,1755175848988,-602.72,0.00016986,2]
[379171326,1755175848998,-460.0,0.00016986,2]
[379171327,1755175849008,-473.51,0.00016986,2]
[379171328,1755175849017,-507.05,0.00016986,2]
[379171329,1755175849027,-151.0,0.00016986,2]
[379171330,1755175849036,-151.0,0.00016986,2]
[379171331,1755175849045,-557.17,0.00016986,2]
[379171332,1755175849055,-151.0,0.00016986,2]
[379171333,1755175849065,-151.0,0.00016986,2]
[379171334,1755175849074,-460.0,0.00016986,2]
[379171335,1755175849084,-727.81,0.00016986,2]
[379171336,1755175849094,-151.0,0.00016986,2]
[379171337,1755175849103,-151.0,0.00016986,2]
[379171338,1755175849113,-460.0,0.00016986,2]
[379171339,1755175849122,-460.0,0.00016986,2]
[379171340,1755175849132,-151.0,0.00016986,2]
[379171341,1755175849142,-958.62,0.00016986,2]
[379171342,1755175849153,-1253.76,0.00016986,2]
[379171343,1755175849162,-159.734696,0.00016986,2]
[379171344,1755175849172,-460.0,0.00016986,2]
[379171345,1755175849182,-151.0,0.00016986,2]
[379171346,1755175849193,-460.0,0.00016986,2]
[379171347,1755175849203,-483.44,0.00016986,2]
[379171348,1755175849213,-460.0,0.00016986,2]
[379171349,1755175849223,-460.0,0.00016986,2]
[379171350,1755175849233,-460.0,0.00016986,2]
[379171351,1755175849246,-460.0,0.00016986,2]
[379171352,1755175849257,-550.01,0.00016986,2]
[379171353,1755175849267,-610.13,0.00016986,2]
[379171354,1755175849279,-460.0,0.00016986,2]
[379171355,1755175849289,-460.0,0.00016986,2]
[379171356,1755175849299,-478.96,0.00016986,2]
[379171357,1755175849309,-152.578912,0.00016986,2]
[379171358,1755175849319,-881.27,0.00016986,2]
[379171359,1755175849329,-460.0,0.00016986,2]
[379171360,1755175849340,-460.0,0.00016986,2]
[379171361,1755175849351,-513.57,0.00016986,2]
[379171362,1755175849367,-460.0,0.00016986,2]
[379171363,1755175849381,-460.0,0.00016986,2]
[379171364,1755175849394,-460.0,0.00016986,2]
[379171365,1755175849407,-586.54,0.00016986,2]
[379171366,1755175849418,-716.01,0.00016986,2]
[379171367,1755175849432,-1743.59,0.00016986,2]
[379171368,1755175849444,-460.0,0.00016986,2]
[379171369,1755175849458,-1404.59,0.00016986,2]
[379171370,1755175849471,-460.0,0.00016986,2]
[379171371,1755175849484,-460.0,0.00016986,2]
[379171372,1755175849498,-460.0,0.00016986,2]
[379171373,1755175849512,-460.0,0.00016986,2]
[379171374,1755175849525,-622.26,0.00016986,2]
[379171375,1755175849536,-460.0,0.00016986,2]
[379171376,1755175849550,-460.0,0.00016986,2]
[379171377,1755175849562,-460.0,0.00016986,2]
[379171378,1755175849575,-460.0,0.00016986,2]
[379171379,1755175849588,-460.0,0.00016986,2]
[379171380,1755175849600,-460.0,0.00016986,2]
[379171381,1755175849611,-460.0,0.00016986,2]
[379171382,1755175849622,-460.0,0.00016986,2]
[379171383,1755175849634,-460.0,0.00016986,2]
[379171384,1755175849644,-460.0,0.00016986,2]
[379171385,1755175849657,-589.27,0.00016986,2]
[379171386,1755175849669,-460.0,0.00016986,2]
[379171387,1755175849682,-460.0,0.00016986,2]
[379171388,1755175849694,-814.08,0.00016986,2]
[379171389,1755175849707,-612.93,0.00016986,2]
[379171390,1755175849720,-460.0,0.00016986,2]
[379171391,1755175849733,-696.45,0.00016986,2]
[379171392,1755175849745,-460.0,0.00016986,2]
[379171393,1755175849755,-1058.28,0.00016986,2]
[379171394,1755175849767,-460.0,0.00016986,2]
[379171395,1755175849778,-460.0,0.00016986,2]
[379171396,1755175849791,-1203.36,0.00016986,2]
[379171397,1755175849805,-460.0,0.00016986,2]
[379171398,1755175849818,-1387.46,0.00016986,2]
[379171399,1755175849828,-583.44564106,0.00016986,2]
[379171400,1755175849840,-1003.46,0.00016986,2]
[379171401,1755175849851,-460.0,0.00016986,2]
[379171402,1755175849864,-460.0,0.00016986,2]
[379171403,1755175849876,-460.0,0.00016986,2]
[379171404,1755175849887,-658.8,0.00016986,2]
[379171405,1755175849898,-659.15,0.00016986,2]
[379171406,1755175849910,-3602.78,0.00016986,2]
[379171407,1755175849922,-995.23,0.00016986,2]
[379171408,1755175849933,-460.0,0.00016986,2]
[379171409,1755175849945,-460.0,0.00016986,2]
[379171410,1755175849956,-460.0,0.00016986,2]
[379171411,1755175849967,-460.0,0.00016986,2]
[379171412,1755175849979,-460.0,0.00016986,2]
[379171413,1755175849990,-460.0,0.00016986,2]
[379171414,1755175850002,-649.85,0.00016986,2]
[379171415,1755175850013,-506.73,0.00016986,2]
[379171416,1755175850026,-460.0,0.00016986,2]
[379171417,1755175850037,-261.45642991,0.00016986,2]
[379171418,1755175850049,-460.0,0.00016986,2]
[379171419,1755175850060,-460.0,0.00016986,2]
[379171420,1755175850072,-460.0,0.00016986,2]
[379171421,1755175850084,-460.0,0.00016986,2]
[379171422,1755175850096,-460.0,0.00016986,2]
[379171423,1755175850107,-460.0,0.00016986,2]
[379171424,1755175850119,-815.02,0.00016986,2]
[379171425,1755175850130,-460.0,0.00016986,2]
[379171426,1755175850142,-875.25,0.00016986,2]
[379171427,1755175850153,-460.0,0.00016986,2]
[379171428,1755175850165,-787.23,0.00016986,2]
[379171429,1755175850176,-478.1,0.00016986,2]
[379171430,1755175850188,-1108.44,0.00016986,2]
[379171431,1755175850201,-151.0,0.00016986,2]
[379171432,1755175850212,-151.0,0.00016986,2]
[379171433,1755175850224,-803.15,0.00016986,2]
[379171434,1755175850237,-699.67,0.00016986,2]
[379171435,1755175850249,-460.0,0.00016986,2]
[379171436,1755175850260,-460.0,0.00016986,2]
[379171437,1755175850274,-865.62,0.00016986,2]
[379171438,1755175850286,-460.0,0.00016986,2]
[379171439,1755175850298,-460.0,0.00016986,2]
[379171440,1755175850310,-1815.51,0.00016986,2]
[379171441,1755175850322,-460.0,0.00016986,2]
[379171442,1755175850336,-151.0,0.00016986,2]
[379171443,1755175850347,-151.0,0.00016986,2]
[379171444,1755175850359,-493.12,0.00016986,2]
[379171445,1755175850370,-855.88,0.00016986,2]
[379171446,1755175850381,-460.0,0.00016986,2]
[379171447,1755175850393,-460.0,0.00016986,2]
[379171448,1755175850404,-855.38,0.00016986,2]
[379171449,1755175850416,-460.0,0.00016986,2]
[379171450,1755175850428,-420.9119391,0.00016986,2]
[379171451,1755175850439,-842.57,0.00016986,2]
[379171452,1755175850450,-1168.6,0.00016986,2]
[379171453,1755175850462,-460.0,0.00016986,2]
[379171454,1755175850473,-496.26,0.00016986,2]
[379171455,1755175850485,-1943.05,0.00016986,2]
[379171456,1755175850496,-460.0,0.00016986,2]
[379171457,1755175850507,-624.64,0.00016986,2]
[379171458,1755175850521,-460.0,0.00016986,2]
[379171459,1755175850533,-1435.73,0.00016986,2]
[379171460,1755175850544,-4780.38,0.00016986,2]
[379171461,1755175850556,-2554.0,0.00016986,2]
[379171462,1755175850567,-460.0,0.00016986,2]
[379171463,1755175850579,-460.0,0.00016986,2]
[379171464,1755175850591,-787.38,0.00016986,2]
[379171465,1755175850604,-460.0,0.00016986,2]
[379171466,1755175850616,-460.0,0.00016986,2]
[379171467,1755175850628,-681.21,0.00016986,2]
[379171468,1755175850639,-1250.08,0.00016986,2]
[379171469,1755175850651,-1116.97,0.00016986,2]
[379171470,1755175850662,-917.72,0.00016986,2]
[379171471,1755175850673,-730.83,0.00016986,2]
[379171472,1755175850685,-460.0,0.00016986,2]
[379171473,1755175850696,-792.1,0.00016986,2]
[379171474,1755175850708,-460.0,0.00016986,2]
[379171475,1755175850719,-460.0,0.00016986,2]
[379171476,1755175850730,-460.0,0.00016986,2]
[379171477,1755175850742,-476.49,0.00016986,2]
[379171478,1755175850753,-460.0,0.00016986,2]
[379171479,1755175850764,-2103.47,0.00016986,2]
[379171480,1755175850777,-460.0,0.00016986,2]
[379171481,1755175850788,-460.0,0.00016986,2]
[379171482,1755175850800,-878.48,0.00016986,2]
[379171483,1755175850811,-1480.56,0.00016986,2]
[379171484,1755175850822,-460.0,0.00016986,2]
[379171485,1755175850834,-1865.21,0.00016986,2]
[379171486,1755175850845,-662.76,0.00016986,2]
[379171487,1755175850859,-3052.16,0.00016986,2]
[379171488,1755175850870,-460.0,0.00016986,2]
[379171489,1755175850881,-983.73,0.00016986,2]
[379171490,1755175850892,-460.0,0.00016986,2]
[379171491,1755175850904,-460.0,0.00016986,2]
[379171492,1755175850915,-2057.02,0.00016986,2]
[379171493,1755175850927,-460.0,0.00016986,2]
[379171494,1755175850938,-460.0,0.00016986,2]
[379171495,1755175850950,-829.79,0.00016986,2]
[379171496,1755175850961,-485.87,0.00016986,2]
[379171497,1755175850973,-476.58641955,0.00016986,2]
[379171498,1755175850984,-664.23,0.00016986,2]
[379171499,1755175850996,-499.23244392,0.00016986,2]
[379171500,1755175851008,-11382.43,0.00016986,2]
[379171501,1755175851019,-460.0,0.00016986,2]
[379171502,1755175851031,-460.0,0.00016986,2]
[379171503,1755175851043,-480.78812035,0.00016986,2]
[379171504,1755175851054,-504.47,0.00016986,2]
[379171505,1755175851065,-1500.93,0.00016986,2]
[379171506,1755175851076,-2175.76,0.00016986,2]
[379171507,1755175851087,-460.0,0.00016986,2]
[379171508,1755175851099,-1294.6,0.00016986,2]
[379171509,1755175851109,-215.97819564,0.00016986,2]
[379171510,1755175851119,-513.91,0.00016986,2]
[379171511,1755175851128,-832.86,0.00016986,2]
[379171512,1755175851138,-460.0,0.00016986,2]
[379171513,1755175851371,-613.61,0.00016986,2]
[379171514,1755175851390,-460.0,0.00016986,2]
[379171515,1755175851402,-486.92,0.00016986,2]
[379171516,1755175851411,-1551.6,0.00016986,2]
[379171517,1755175851421,-1994.22,0.00016986,2]
[379171518,1755175851430,-882.03,0.00016986,2]
[379171519,1755175851439,-460.0,0.00016986,2]
[379171520,1755175851449,-460.0,0.00016986,2]
[379171521,1755175851459,-460.0,0.00016986,2]
[379171522,1755175851468,-941.45,0.00016986,2]
[379171523,1755175851477,-460.0,0.00016986,2]
[379171524,1755175851487,-1175.46,0.00016986,2]
[379171525,1755175851496,-2242.55,0.00016986,2]
[379171526,1755175851506,-1055.55,0.00016986,2]
[379171527,1755175851516,-460.0,0.00016986,2]
[379171528,1755175851525,-544.54,0.00016986,2]
[379171529,1755175851534,-7510.2,0.00016986,2]
[379171530,1755175851543,-844.15,0.00016986,2]
[379171531,1755175851552,-460.0,0.00016986,2]
[379171532,1755175851562,-460.0,0.00016986,2]
[379171533,1755175851572,-2875.86,0.00016986,2]
[379171534,1755175851581,-975.64,0.00016986,2]
[379171535,1755175851590,-460.0,0.00016986,2]
[379171536,1755175851600,-573.82,0.00016986,2]
[379171537,1755175851609,-460.0,0.00016986,2]
[379171538,1755175851618,-460.0,0.00016986,2]
[379171539,1755175851628,-460.0,0.00016986,2]
[379171540,1755175851637,-460.0,0.00016986,2]
[379171541,1755175851647,-460.0,0.00016986,2]
[379171542,1755175851656,-460.0,0.00016986,2]
[379171543,1755175851665,-576.43,0.00016986,2]
[379171544,1755175851674,-1050.32,0.00016986,2]
[379171545,1755175851684,-1257.29,0.00016986,2]
[379171546,1755175851693,-427.18477668,0.00016986,2]
[379171547,1755175851702,-460.0,0.00016986,2]
[379171548,1755175851712,-2320.64,0.00016986,2]
[379171549,1755175851721,-7172.04,0.00016986,2]
[379171550,1755175851731,-460.0,0.00016986,2]
[379171551,1755175851740,-650.96,0.00016986,2]
[379171552,1755175851749,-1112.56,0.00016986,2]
[379171553,1755175851759,-515.21,0.00016986,2]
[379171554,1755175851771,-1203.72,0.00016986,2]
[379171555,1755175851780,-500.0,0.00016986,2]